Cogmind - Beta 11 --- EXPLORER MODE // 2022.04.14 @ 22:26:44 Player: Grimbling Result: Heading to fleet! Performance ------------- Evolutions (9) 4500 Regions Visited (18) 3600 Robots Destroyed (119) 595 Value Destroyed (3343) 3343 Prototype IDs (69) 1380 Alien Tech Used (14) 2800 Bonus (12572) 12572 TOTAL SCORE: 28790 Bonus ------- High Alert Combat Kills 72 Met Warlord at Base 500 MAIN.C Attacked Warlord 500 Used Core Reset Matrix 3000 Hacked Protovariant 1000 Met Warlord at Research 2000 Scanned by Researcher 500 Met Sigix 2000 Win 3000 Cogmind --------- Core Integrity 1587/1600 Matter 415/425 Energy 324/340 System Corruption 0% Temperature Cool (28) Movement Flying (17) Location To Fleet Rendezvous Parts ------- > --- POWER (4) -------- Light Antimatter Reactor Light Particle Reactor Light Quantum Reactor > --- PROPULSION (10) -- Field Propulsion Array Diametric Drive Diametric Drive Improved Q-thruster Improved Q-thruster Improved Q-thruster Improved Q-thruster Improved Q-thruster Improved Q-thruster > --- UTILITY (10) ----- Improved Heat Sink Advanced Heat Sink Small Storage Unit Long-range Sensor Array Experimental Signal Interpreter Seismic Detector ECM Suite Advanced Reaction Control System Advanced Shield Generator > --- WEAPON (2) ------- Sigix Broadsword > --- INVENTORY (8) ---- Light Quantum Reactor Light Quantum Reactor Q-thruster Q-thruster High-powered Transdimensional Reconstructor Sigix Sheargun Peak State ------------ > --- POWER ------------ Light Antimatter Reactor Light Particle Reactor Light Quantum Reactor Light Quantum Reactor > --- PROPULSION ------- Field Propulsion Array Diametric Drive Diametric Drive Improved Q-thruster Improved Q-thruster Improved Q-thruster Improved Q-thruster Improved Q-thruster Improved Q-thruster > --- UTILITY ---------- Improved Heat Sink Advanced Heat Sink Small Storage Unit Long-range Sensor Array Experimental Signal Interpreter Seismic Detector Improved Transmission Jammer ECM Suite Advanced Reaction Control System Advanced Shield Generator > --- WEAPON ----------- Sigix Broadsword > --- INVENTORY -------- Q-thruster Q-thruster High-powered Transdimensional Reconstructor Terrabomb Sigix Sheargun [Rating: 201] Favorites ----------- Power Light Antimatter Reactor Engine Light Deuterium Engine Power Core Micro Nuclear Core Reactor Light Antimatter Reactor Propulsion Cooled Nuclear Pulse Thruster Leg Aluminum Leg Flight Unit Cooled Nuclear Pulse Thruster Utility Improved Heat Sink Device Improved Heat Sink Storage Small Storage Unit Processor Experimental Signal Interpreter Hackware Hacking Suite Protection Improved Propulsion Shielding Artifact Phase Redirector Weapon Heavy EM Pulse Gun Energy Gun Heavy EM Pulse Gun Energy Cannon Cooled Particle Cannon Ballistic Cannon Graviton Cannon Launcher Tiamat Missile Launcher Special Weapon Mining Laser Impact Weapon Core Stripper Slashing Weapon Sigix Broadsword Piercing Weapon Vortex Lance Special Melee Weapon Improved Datajack Build | -11 -10 -9 -8 -8 -7 -6 -5 -5 -5 -5 -4 -4 -3 -3 -3 -2 -2 -1 ------- Run | Scr Mat Mat Mat Sto Fac Fac Fac Upp Upp War Pro Fac Res Qua Sec Res Tes Acc Slots Evolved 19 | . 1 2 2 . 2 2 2 . . . . 2 2 . . 2 . 2 Power 3 | . . . . . 1 1 . . . . . . . . . . . 1 Propulsion 8 | . 1 1 1 . . . 1 . . . . 1 1 . . 1 . 1 Utility 8 | . . 1 1 . 1 1 1 . . . . 1 1 . . 1 . . Weapon . | . . . . . . . . . . . . . . . . . . . Parts Attached 301 | 7 3 17 10 3 19 19 21 8 . 4 2 14 30 28 57 45 2 12 Power 35 | 1 . 1 . . 2 1 5 2 . . . 4 2 5 6 3 . 3 Engine 10 | 1 . 1 . . 1 1 3 . . . . 2 . . . 1 . . Core 9 | . . . . . 1 . 2 2 . . . . 1 2 1 . . . Reactor 16 | . . . . . . . . . . . . 2 1 3 5 2 . 3 Propulsion 93 | 2 1 5 5 1 8 5 7 3 . 3 . 3 15 3 24 7 . 1 Treads . | . . . . . . . . . . . . . . . . . . . Leg 8 | 2 1 5 . . . . . . . . . . . . . . . . Wheel . | . . . . . . . . . . . . . . . . . . . Hover . | . . . . . . . . . . . . . . . . . . . Flight 85 | . . . 5 1 8 5 7 3 . 3 . 3 15 3 24 7 . 1 Utility 117 | 2 . 3 5 . 4 8 4 1 . . 2 6 9 11 23 30 2 7 Device 93 | 1 . . 2 . 4 6 2 . . . 2 4 6 7 21 29 2 7 Storage 6 | 1 . 2 2 . . . 1 . . . . . . . . . . . Processor 9 | . . 1 . . . 2 1 . . . . 1 2 . 2 . . . Hackware 2 | . . . 1 . . . . . . . . 1 . . . . . . Protection 6 | . . . . . . . . 1 . . . . 1 3 . 1 . . Artifact 1 | . . . . . . . . . . . . . . 1 . . . . Weapon 56 | 2 2 8 . 2 5 5 5 2 . 1 . 1 4 9 4 5 . 1 Energy Gun 26 | 2 1 8 . 1 4 2 3 1 . . . 1 . . 2 1 . . Energy Cannon 5 | . . . . . 1 2 1 . . . . . . 1 . . . . Ballistic Gun . | . . . . . . . . . . . . . . . . . . . Ballistic Cannon 1 | . . . . . . . . . . . . . . . . 1 . . Launcher 1 | . . . . . . . . . . . . . . 1 . . . . Special Weapon 1 | . 1 . . . . . . . . . . . . . . . . . Impact Weapon 1 | . . . . . . . . . . . . . . 1 . . . . Slashing Weapon 10 | . . . . . . . 1 1 . . . . . 2 2 3 . 1 Piercing Weapon 10 | . . . . . . 1 . . . 1 . . 4 4 . . . . Special Melee Weapon 1 | . . . . 1 . . . . . . . . . . . . . . Unidentified Prototypes 38 | . . . . . . 4 4 1 . 1 . 2 4 11 5 5 . 1 Parts Lost 31 | . . 1 . 3 2 1 2 5 . . . . 7 8 . . 2 . Power 7 | . . 1 . . . . 1 2 . . . . . 3 . . . . Propulsion 10 | . . . . 3 1 . . 1 . . . . 4 1 . . . . Utility 13 | . . . . . 1 1 1 1 . . . . 3 4 . . 2 . Weapon 1 | . . . . . . . . 1 . . . . . . . . . . Highest Loss Streak 7 | . . 1 . 2 2 1 1 4 . . . . 7 3 . . 1 . To Critical Strikes 1 | . . . . . . . . . . . . . 1 . . . . . Average Slot Usage (%) 91 | . 99 97 87 90 98 99 99 92 94 94 94 89 83 75 83 89 90 87 Engine 5 | . 12 10 8 8 7 11 11 6 5 5 5 4 . . . . . . Core 3 | . . . . . 6 6 5 7 11 11 11 5 4 4 . . . . Reactor 3 | . . . . . . . . . . . . 2 5 3 11 11 12 11 Leg 9 | . 36 38 . . . . . . . . . . . . . . . . Flight 23 | . . . 41 35 34 31 33 33 33 33 33 35 24 22 28 33 33 34 Device 19 | . 12 10 8 8 20 27 24 17 16 16 18 26 26 23 25 29 32 29 Storage 5 | . 12 10 8 6 . . 4 5 5 5 5 5 4 4 4 4 4 3 Processor 7 | . . 10 8 8 7 6 8 11 11 11 9 5 9 9 9 6 4 3 Hackware 1 | . . . 3 8 7 2 . . . . . 1 . . . . . . Energy Gun 7 | . 21 17 8 8 13 8 5 2 . . . . . . . . . . Slashing Weapon 1 | . . . . . . . . 4 5 2 . . . . 4 3 4 3 Piercing Weapon 1 | . . . . . . 3 4 . . 2 5 5 8 4 . . . . Naked Turns . | . . . . . . . . . . . . . . . . . . . Heaviest Build 76 | 18 19 22 14 15 22 32 45 46 46 46 46 46 61 57 66 76 76 76 Greatest Support 87 | 20 30 40 16 16 26 39 47 46 46 46 46 52 68 68 80 82 82 87 Greatest Overweight (x) 1 | . . . . 1 1 . . . . . . . . . 1 . . . Average Overweight (x) . | . . . . . . . . . . . . . . . . . . . Largest Inventory Capacity 10 | 10 10 10 10 8 5 5 8 8 8 8 8 8 8 8 8 8 8 8 Average Capacity 8 | 8 10 9 8 7 5 5 7 8 8 8 8 8 8 8 8 8 8 8 Most Carried 10 | 5 10 10 9 8 5 5 8 8 8 8 8 8 8 8 8 8 8 7 Average Carried 7 | 2 8 9 5 7 3 4 6 6 8 7 8 7 7 7 7 7 7 6 Final Capacity 10 | 10 10 10 8 5 5 5 8 8 8 8 8 8 8 8 8 8 8 8 Final Carried 10 | 5 9 10 7 5 5 5 8 8 8 8 8 8 7 8 8 8 8 6 Class Distribution -------------------- 27% | Hacker-Sprinter 26% | Generator-Sprinter 26% | Hacker-Mutant 17% | Alien-Sprinter Dominant Class ---------------- Hacker-Mutant | -10/Materials Hacker-Mutant | -9/Materials Scavenger-Sprinter | -8/Materials Hacker-Sprinter | -8/Storage Hacker-Sprinter | -7/Factory Hacker-Sprinter | -6/Factory Hacker-Sprinter | -5/Factory Hacker-Sprinter | -5/Upper Caves Generator-Sprinter | -5/Upper Caves Generator-Sprinter | -5/Warlord Generator-Sprinter | -4/Proximity Caves Hacker-Sprinter | -4/Factory Generator-Sprinter | -3/Research Generator-Sprinter | -3/Quarantine Alien-Sprinter | -3/Section 7 Alien-Sprinter | -2/Research Alien-Sprinter | -2/Testing Alien-Sprinter | -1/Access Resources | -11 -10 -9 -8 -8 -7 -6 -5 -5 -5 -5 -4 -4 -3 -3 -3 -2 -2 -1 ----------- Run | Scr Mat Mat Mat Sto Fac Fac Fac Upp Upp War Pro Fac Res Qua Sec Res Tes Acc Matter Collected 3420 | 218 88 170 100 30 116 239 223 49 36 40 20 74 160 414 572 567 184 120 Remotely . | . . . . . . . . . . . . . . . . . . . Salvage Created 5176 | . 426 1068 89 265 208 461 285 68 . . 63 208 15 561 603 709 110 37 Parts 263 | . 28 59 2 9 7 14 16 6 . . 4 10 . 27 37 35 4 5 Haulers Intercepted 20 | . 2 5 . 2 1 2 1 . . . . 1 . 2 1 3 . . Recyclers Shooed 1 | . . . . . . . . . . . . . . . 1 . . . Parts Field Recycled . | . . . . . . . . . . . . . . . . . . . Retrieved Matter . | . . . . . . . . . . . . . . . . . . . Parts Self-Destructed . | . . . . . . . . . . . . . . . . . . . Prevented . | . . . . . . . . . . . . . . . . . . . Kills | -11 -10 -9 -8 -8 -7 -6 -5 -5 -5 -5 -4 -4 -3 -3 -3 -2 -2 -1 ------- Run | Scr Mat Mat Mat Sto Fac Fac Fac Upp Upp War Pro Fac Res Qua Sec Res Tes Acc Combat Hostiles Destroyed 51 | . 6 19 . 3 2 1 4 2 . . 3 1 1 3 4 2 . . Melee 20 | . . . . . . . 4 2 . . 3 1 1 3 4 2 . . Guns 28 | . 6 16 . 3 2 1 . . . . . . . . . . . . Classes Destroyed 14 | . 5 1 . . 2 2 . 2 . . . . 1 1 . . . . Worker 6 | . . . . . 1 1 1 . . . . . . 1 2 . . . Builder 2 | . . . . . . 1 . . . . . . . . . 1 . . Tunneler 2 | . . . . . . 1 . . . . . . . . . 1 . . Hauler 20 | . 2 5 . 2 1 2 1 . . . . 1 . 2 1 3 . . Recycler 6 | . 1 2 . . . 1 . . . . . . . . 1 1 . . Operator 10 | . . . . . 2 . 2 . . . . 1 . 1 1 2 . 1 Drone 1 | . . . . . . . . 1 . . . . . . . . . . Watcher 18 | . 3 4 3 . 1 . . . . . . 1 . 2 2 1 1 . Swarmer 27 | . 4 7 . . 2 1 4 . . . 3 . . 3 3 . . . Grunt 12 | . 2 6 . 2 . . . . . . . . . . . 2 . . Researcher 5 | . . . . . . . . . . . . . . 3 1 . 1 . Sentry 7 | . . 6 . 1 . . . . . . . . . . . . . . Programmer 3 | . . . . . . . . 1 . . . 1 . . 1 . . . Behemoth 1 | . . . . . . . . . . . . . 1 . . . . . Best Kill Streak 6 | . 6 4 1 5 3 2 2 2 . . 3 2 1 4 2 3 2 1 Combat Bots Only 4 | . 2 4 . 3 2 1 2 2 . . 3 1 1 3 2 2 . . Max Kills in Single Turn 2 | . 2 2 1 1 1 1 1 1 . . 1 1 1 1 1 1 1 1 Gunslinging 1 | . 1 . . . . . . . . . . . . . . . . . Exploded . | . . . . . . . . . . . . . . . . . . . Melee 1 | . . . . . . . 1 1 . . 1 1 1 1 1 1 . . Uniques/NPCs Destroyed . | . . . . . . . . . . . . . . . . . . . Combat | -11 -10 -9 -8 -8 -7 -6 -5 -5 -5 -5 -4 -4 -3 -3 -3 -2 -2 -1 -------- Run | Scr Mat Mat Mat Sto Fac Fac Fac Upp Upp War Pro Fac Res Qua Sec Res Tes Acc Damage Taken 5421 | . 71 378 41 299 152 211 401 346 22 151 117 67 925 1270 444 57 347 122 Core 866 | . 6 55 30 102 20 23 97 39 . 32 7 11 164 208 13 16 30 13 Absorbed by Shields 195 | . . . . . . . . . . . . . . 18 . . 130 47 Redirected to Shielding 106 | . . . . . . . . . 13 21 . . . 72 . . . . Regen/Repaired (Parts) 677 | . . . . . . . . . . . . . . 16 419 50 80 112 Core Remaining (%) 92 | 100 97 86 . 76 97 97 . . . . 82 99 . . 95 . 91 99 Volleys Fired 172 | . 19 91 13 26 10 6 7 . . . . . . . . . . . Largest 2 | . 2 2 1 1 2 2 1 . . . . . . . . . . . Hottest 156 | . 100 156 45 56 100 100 65 . . . . . . . . . . . Shots Fired 249 | . 35 139 13 26 20 9 7 . . . . . . . . . . . Gun 244 | . 32 137 13 26 20 9 7 . . . . . . . . . . . Cannon . | . . . . . . . . . . . . . . . . . . . Launcher . | . . . . . . . . . . . . . . . . . . . Special 5 | . 3 2 . . . . . . . . . . . . . . . . Kinetic . | . . . . . . . . . . . . . . . . . . . Thermal 148 | . 19 121 . 8 . . . . . . . . . . . . . . Explosive . | . . . . . . . . . . . . . . . . . . . Electromagnetic 101 | . 16 18 13 18 20 9 7 . . . . . . . . . . . Robot Hit Streak 19 | . 17 19 6 8 13 13 17 . . . . . . . . . . . Robot Miss Streak 3 | . 3 3 3 2 1 . 2 . . . . . . . . . . . Penetration Max . | . . . . . . . . . . . . . . . . . . . Secondary Targets 3 | . 2 . . . 1 . . . . . . . . . . . . . Max Gunslinging Chain 1 | . 1 . . . 1 . . . . . . . . . . . . . Shots Hit Robots 318 | . 24 114 8 19 18 23 16 7 . . 4 5 19 21 21 14 4 1 Core Hits 127 | . 15 42 4 8 10 7 6 2 . . 3 2 1 10 7 7 2 1 Critical Kills . | . . . . . . . . . . . . . . . . . . . Critical Parts Destroyed . | . . . . . . . . . . . . . . . . . . . Critical Strikes 24 | . . 15 . 2 . . . 1 . . 2 . . 1 1 2 . . Burn 16 | . . 15 . 1 . . . . . . . . . . . . . . Corrupt 1 | . . . . 1 . . . . . . . . . . . . . . Sever 4 | . . . . . . . . 1 . . . . . . 1 2 . . Impale 1 | . . . . . . . . . . . . . . 1 . . . . Sunder 2 | . . . . . . . . . . . 2 . . . . . . . Melee Attacks 211 | . . . . . . 14 11 7 . . 5 5 38 46 53 16 8 8 Impact . | . . . . . . . . . . . . . . . . . . . Slashing 95 | . . . . . . . 2 7 . . . . . 1 53 16 8 8 Piercing 77 | . . . . . . 14 9 . . . . . 14 40 . . . . Entropic 39 | . . . . . . . . . . . 5 5 24 5 . . . . Sneak Attacks 31 | . . . . . . 6 3 1 . . . 1 . 5 6 7 2 . Combat Hostiles 1 | . . . . . . . . 1 . . . . . . . . . . Follow-up Attacks 3 | . . . . . . . . . . . . . 3 . . . . . Damage Inflicted 15452 | . 434 1687 290 412 392 963 755 394 . . 374 615 1843 1913 2482 2023 785 90 Guns 3063 | . 313 1604 205 301 392 184 64 . . . . . . . . . . . Cannons . | . . . . . . . . . . . . . . . . . . . Explosions 352 | . 121 35 85 111 . . . . . . . . . . . . . . Melee 11989 | . . . . . . 779 691 394 . . 374 615 1843 1913 2482 2023 785 90 Ramming . | . . . . . . . . . . . . . . . . . . . Kinetic . | . . . . . . . . . . . . . . . . . . . Thermal 2032 | . 227 1509 85 211 . . . . . . . . . . . . . . Explosive . | . . . . . . . . . . . . . . . . . . . Electromagnetic 1431 | . 207 178 205 201 392 184 64 . . . . . . . . . . . Impact . | . . . . . . . . . . . . . . . . . . . Slashing 6011 | . . . . . . . 123 394 . . . . . 114 2482 2023 785 90 Piercing 2914 | . . . . . . 779 568 . . . . . . 1567 . . . . Entropic 3064 | . . . . . . . . . . . 374 615 1843 232 . . . . Highest Corruption 10 | . 2 2 . . . 1 . 3 3 4 . 1 2 10 5 . 1 . Average Corruption 2 | . 1 1 . . . 1 . 2 3 3 . 1 1 4 3 . 1 . Corruption Purged . | . . . . . . . . . . . . . . . . . . . Corruption Blocked 23 | . . . . . . . . . . . . . . . . 23 . . Effects 35 | . 1 2 . . . 1 . 3 1 . . . 1 13 13 . . . Message Errors 3 | . . . . . . . . . . . . . . 2 1 . . . Matter Fused 11 | . 1 . . . . 1 . 2 1 . . . . 4 2 . . . Heat Flow Errors 7 | . . 1 . . . . . . . . . . 1 3 2 . . . Energy Discharges 8 | . . 1 . . . . . . . . . . . 3 4 . . . Parts Rejected 1 | . . . . . . . . . . . . . . . 1 . . . Data Loss (minor) 2 | . . . . . . . . . . . . . . 1 1 . . . Data Loss (major) 3 | . . . . . . . . 1 . . . . . . 2 . . . Overload Shots . | . . . . . . . . . . . . . . . . . . . Overflow Damage 2175 | . . . . . 45 136 170 36 . . 61 184 23 254 747 317 202 . Projectiles . | . . . . . . . . . . . . . . . . . . . Explosions 45 | . . . . . 45 . . . . . . . . . . . . . Melee 2130 | . . . . . . 136 170 36 . . 61 184 23 254 747 317 202 . Knockbacks . | . . . . . . . . . . . . . . . . . . . Impact . | . . . . . . . . . . . . . . . . . . . Kinetic . | . . . . . . . . . . . . . . . . . . . Secondary . | . . . . . . . . . . . . . . . . . . . Self-Inflicted Damage 73 | . . 20 . . 53 . . . . . . . . . . . . . Shots 2 | . . 1 . . 1 . . . . . . . . . . . . . Rammed . | . . . . . . . . . . . . . . . . . . . Targets Rammed . | . . . . . . . . . . . . . . . . . . . Kicked . | . . . . . . . . . . . . . . . . . . . Crushed . | . . . . . . . . . . . . . . . . . . . Highest Temperature 252 | . 246 252 4 98 45 102 34 10 9 18 37 . 141 218 190 . 32 50 Average Temperature 44 | . 69 66 3 34 19 46 13 6 6 13 12 . 49 81 30 . 17 24 Received Heat Transfer 1314 | . 36 189 18 225 90 69 54 21 9 36 55 . 135 281 21 45 18 12 Effects 1 | . 1 . . . . . . . . . . . . . . . . . Energy Bleed 1 | . 1 . . . . . . . . . . . . . . . . . Siege Activations . | . . . . . . . . . . . . . . . . . . . Robots Corrupted 2 | . . . . . 1 1 . . . . . . . . . . . . Combat Hostiles . | . . . . . . . . . . . . . . . . . . . Parts Fried 22 | . 3 . 4 1 11 3 . . . . . . . . . . . . Impact Corruptions . | . . . . . . . . . . . . . . . . . . . Robots Melted 4 | . . 4 . . . . . . . . . . . . . . . . Combat Hostiles 3 | . . 3 . . . . . . . . . . . . . . . . Parts Melted 12 | . . 12 . . . . . . . . . . . . . . . . Heat Transferred 5879 | . 446 4887 100 446 . . . . . . . . . . . . . . Parts Sabotaged . | . . . . . . . . . . . . . . . . . . . Parts Stolen . | . . . . . . . . . . . . . . . . . . . Parts Stripped . | . . . . . . . . . . . . . . . . . . . Power Chain Reactions 6 | . 1 1 2 1 1 . . . . . . . . . . . . . Missiles Intercepted . | . . . . . . . . . . . . . . . . . . . Alert | -11 -10 -9 -8 -8 -7 -6 -5 -5 -5 -5 -4 -4 -3 -3 -3 -2 -2 -1 ------- Run | Scr Mat Mat Mat Sto Fac Fac Fac Upp Upp War Pro Fac Res Qua Sec Res Tes Acc Peak Influence 780 | . 135 430 252 441 309 470 314 . . . . 344 394 707 780 513 303 429 Initial 298 | . . 1 15 75 145 111 27 . . . . 55 133 166 298 204 89 133 Average 233 | . 79 128 103 231 160 275 90 . . . . 171 220 317 552 309 196 237 Maximum Alert Level 3 | . . 2 1 2 1 2 1 . . . . 1 1 3 3 2 1 2 Low Security (%) 54 | 100 100 80 83 37 97 37 91 . . . . 64 53 17 . . 51 45 Level 1 28 | . . 15 16 51 2 32 8 . . . . 35 46 58 23 85 48 49 Level 2 13 | . . 3 . 10 . 29 . . . . . . . 23 51 14 . 4 Level 3 3 | . . . . . . . . . . . . . . . 24 . . . Level 4 . | . . . . . . . . . . . . . . . . . . . Level 5 . | . . . . . . . . . . . . . . . . . . . High Security . | . . . . . . . . . . . . . . . . . . . Max Security . | . . . . . . . . . . . . . . . . . . . Squads Dispatched 38 | . . 4 2 3 3 4 2 . . . . 3 2 6 3 2 3 1 Investigation 12 | . . 1 1 2 . 1 . . . . . 1 . 4 . . 1 1 Extermination 4 | . . . . . . 1 . . . . . . 1 1 1 . . . Reinforcement 20 | . . 3 1 1 3 2 2 . . . . 2 1 1 2 2 . . Assault 2 | . . . . . . . . . . . . . . . . . 2 . Garrison . | . . . . . . . . . . . . . . . . . . . Intercept . | . . . . . . . . . . . . . . . . . . . Searches Triggered 4 | . . . . . . 1 . . . . . . . . 3 . . . Construction Impeded 1 | . . . . 1 . . . . . . . . . . . . . . Haulers Reinforced 6 | . . . . . . 2 1 . . . . 1 . . 1 1 . . Active Scanning Responses . | . . . . . . . . . . . . . . . . . . . Cargo Convoy Interrupts . | . . . . . . . . . . . . . . . . . . . Stealth | -11 -10 -9 -8 -8 -7 -6 -5 -5 -5 -5 -4 -4 -3 -3 -3 -2 -2 -1 --------- Run | Scr Mat Mat Mat Sto Fac Fac Fac Upp Upp War Pro Fac Res Qua Sec Res Tes Acc Distress Signals 11 | . . 2 1 4 . . . . . . . . 1 1 1 . . 1 Communications Jammed 24 | . . . . . . . . . . . . . 11 . 12 . 1 . Distress Signals 23 | . . . . . . . . . . . . . 11 . 11 . 1 . Times Spotted 385 | . 9 34 13 30 18 15 18 24 5 9 8 20 18 56 56 10 28 14 Peak Tracking Total 20 | . 2 4 7 20 6 7 7 7 4 9 4 9 6 11 10 2 15 8 Tactical Retreats 75 | . . 2 2 2 3 6 4 8 2 . 3 4 4 11 14 3 3 4 Traps | -11 -10 -9 -8 -8 -7 -6 -5 -5 -5 -5 -4 -4 -3 -3 -3 -2 -2 -1 ------- Run | Scr Mat Mat Mat Sto Fac Fac Fac Upp Upp War Pro Fac Res Qua Sec Res Tes Acc Traps Triggered 14 | . 4 4 . 1 . . . . . 2 . . . 2 . . 1 . Indirectly . | . . . . . . . . . . . . . . . . . . . Trap Hack Attempts . | . . . . . . . . . . . . . . . . . . . Triggered . | . . . . . . . . . . . . . . . . . . . Disarmed . | . . . . . . . . . . . . . . . . . . . Reprogrammed 12 | . . . . 12 . . . . . . . . . . . . . . Reused 5 | . . . . 5 . . . . . . . . . . . . . . Traps Extracted . | . . . . . . . . . . . . . . . . . . . Installed . | . . . . . . . . . . . . . . . . . . . Triggered 17 | . . . . 5 . . . . 3 8 1 . . . . . . . Machines | -11 -10 -9 -8 -8 -7 -6 -5 -5 -5 -5 -4 -4 -3 -3 -3 -2 -2 -1 ---------- Run | Scr Mat Mat Mat Sto Fac Fac Fac Upp Upp War Pro Fac Res Qua Sec Res Tes Acc Machines Disabled 26 | . . . 1 1 2 . . . . . . . 2 9 7 . 3 1 Max in Single Turn 2 | . . . 1 1 2 . . . . . . . 1 1 1 . 1 1 Machines Sabotaged . | . . . . . . . . . . . . . . . . . . . Garrisons Compromised . | . . . . . . . . . . . . . . . . . . . Overloaded Fab Kills . | . . . . . . . . . . . . . . . . . . . Hacking | -11 -10 -9 -8 -8 -7 -6 -5 -5 -5 -5 -4 -4 -3 -3 -3 -2 -2 -1 --------- Run | Scr Mat Mat Mat Sto Fac Fac Fac Upp Upp War Pro Fac Res Qua Sec Res Tes Acc Machines Accessed 63 | . 5 4 1 8 1 3 1 1 . 3 . 4 4 11 10 1 3 3 Terminals 57 | . 5 4 1 8 . 3 1 . . . . 4 4 11 10 . 3 3 Fabricators 1 | . . . . . 1 . . . . . . . . . . . . . Repair Stations . | . . . . . . . . . . . . . . . . . . . Recycling Units . | . . . . . . . . . . . . . . . . . . . Scanalyzers . | . . . . . . . . . . . . . . . . . . . Garrison Access 1 | . . . . . . . . . . . . . . . . 1 . . Total Hacks 173 | . 18 12 4 34 1 9 3 1 . 8 . 8 15 26 16 2 10 6 Successful 105 | . 12 9 2 24 1 4 1 1 . 8 . 2 8 11 11 . 7 4 Failed 68 | . 6 3 2 10 . 5 2 . . . . 6 7 15 5 2 3 2 Catastrophic 10 | . 1 1 . . . 1 . . . . . 1 1 2 1 1 1 . Database Lockouts . | . . . . . . . . . . . . . . . . . . . Manual 103 | . 17 11 4 26 . 9 . . . . . 4 14 7 9 . 1 1 Terminals 161 | . 18 12 4 34 . 9 3 . . . . 8 15 26 16 . 10 6 Fabricators 1 | . . . . . 1 . . . . . . . . . . . . . Repair Stations . | . . . . . . . . . . . . . . . . . . . Recycling Units . | . . . . . . . . . . . . . . . . . . . Scanalyzers . | . . . . . . . . . . . . . . . . . . . Garrison Access 2 | . . . . . . . . . . . . . . . . 2 . . Terminal Hacks 73 | . 7 5 1 16 . 1 1 1 . 8 . 2 3 9 9 . 6 4 Record 7 | . . . . . . . . . . 2 . . . 4 1 . . . Robot Analysis 5 | . . . . 2 . . . . . . . 1 1 1 . . . . Prototype ID Bank 18 | . 5 4 . 4 . . . . . 5 . . . . . . . . Open Door 8 | . . . . 2 . . . 1 . 1 . . . . 3 . 1 . Level Access Points 4 | . . . . 1 . . . . . . . . 1 1 . . . 1 Branch Access Points 8 | . . . 1 1 . 1 1 . . . . 1 1 1 . . 1 . Unreport Threat 4 | . 2 1 . . . . . . . . . . . 1 . . . . Locate Traps 4 | . . . . 2 . . . . . . . . . . . . 1 1 Reprogram Traps 3 | . . . . 3 . . . . . . . . . . . . . . Registered Prototypes 1 | . . . . . . . . . . . . . . . . . 1 . Zone Layout 8 | . . . . 1 . . . . . . . . . 1 4 . . 2 Protovariant Controls 2 | . . . . . . . . . . . . . . . . . 2 . Activate Exoskeleton 1 | . . . . . . . . . . . . . . . 1 . . . Fabricator Hacks 1 | . . . . . 1 . . . . . . . . . . . . . Build 1 | . . . . . 1 . . . . . . . . . . . . . Repair Station Hacks . | . . . . . . . . . . . . . . . . . . . Recycling Unit Hacks . | . . . . . . . . . . . . . . . . . . . Scanalyzer . | . . . . . . . . . . . . . . . . . . . Garrison Access Hacks . | . . . . . . . . . . . . . . . . . . . Unauthorized Hacks 31 | . 5 4 1 8 . 3 . . . . . . 5 2 2 . 1 . Terminals 31 | . 5 4 1 8 . 3 . . . . . . 5 2 2 . 1 . Botnet 27 | . 5 4 1 6 . 3 . . . . . . 3 2 2 . 1 . Detonate 4 | . . . . 2 . . . . . . . . 2 . . . . . Fabricators . | . . . . . . . . . . . . . . . . . . . Repair Stations . | . . . . . . . . . . . . . . . . . . . Recycling Units . | . . . . . . . . . . . . . . . . . . . Scanalyzers . | . . . . . . . . . . . . . . . . . . . Garrison Access . | . . . . . . . . . . . . . . . . . . . Data Cores Recovered 5 | . . . . . . . 1 . . . . 1 . 1 1 . . 1 Used 3 | . . . . . . . 1 . . . . . . 1 . . . 1 Hacking Detections 49 | . 5 3 1 6 . 3 1 . . . . 3 4 9 8 1 3 2 Full Trace Events 15 | . 2 1 1 4 . 1 . . . . . 1 . 3 . . 1 1 Feedback Events 2 | . . . . . . 2 . . . . . . . . . . . . Corruption 1 | . . . . . . 1 . . . . . . . . . . . . Hackware Fried 1 | . . . . . . 1 . . . . . . . . . . . . Feedback Blocked . | . . . . . . . . . . . . . . . . . . . Robot Schematics Acquired 2 | . . . . . . . . . . . . . . 1 . . 1 . Robots Built . | . . . . . . . . . . . . . . . . . . . Authchips . | . . . . . . . . . . . . . . . . . . . Time . | . . . . . . . . . . . . . . . . . . . Total Robot Build Rating . | . . . . . . . . . . . . . . . . . . . Part Schematics Acquired 15 | . . . . . . . . . . . . . . 8 4 . 3 . Parts Built 2 | . . . . . 2 . . . . . . . . . . . . . Authchips . | . . . . . . . . . . . . . . . . . . . Time 47 | . . . . . 47 . . . . . . . . . . . . . Total Part Build Rating 10 | . . . . . 10 . . . . . . . . . . . . . Parts Repaired . | . . . . . . . . . . . . . . . . . . . Time . | . . . . . . . . . . . . . . . . . . . Parts Recycled . | . . . . . . . . . . . . . . . . . . . Recycled Matter . | . . . . . . . . . . . . . . . . . . . Retrieved Matter . | . . . . . . . . . . . . . . . . . . . Retrieved Components . | . . . . . . . . . . . . . . . . . . . Parts Scanalyzed . | . . . . . . . . . . . . . . . . . . . Part Schematics Acquired . | . . . . . . . . . . . . . . . . . . . Parts Damaged . | . . . . . . . . . . . . . . . . . . . Bothacking | -11 -10 -9 -8 -8 -7 -6 -5 -5 -5 -5 -4 -4 -3 -3 -3 -2 -2 -1 ------------ Run | Scr Mat Mat Mat Sto Fac Fac Fac Upp Upp War Pro Fac Res Qua Sec Res Tes Acc Used RIF Installer . | . . . . . . . . . . . . . . . . . . . Robots Hacked . | . . . . . . . . . . . . . . . . . . . Non-combat . | . . . . . . . . . . . . . . . . . . . Combat . | . . . . . . . . . . . . . . . . . . . Robot Hacks Applied . | . . . . . . . . . . . . . . . . . . . Relay Couplers Released . | . . . . . . . . . . . . . . . . . . . Fabnet Peak Effective % . | . . . . . . . . . . . . . . . . . . . Robots Rewired . | . . . . . . . . . . . . . . . . . . . Allies Hacked . | . . . . . . . . . . . . . . . . . . . Hacks Repelled . | . . . . . . . . . . . . . . . . . . . Allies | -11 -10 -9 -8 -8 -7 -6 -5 -5 -5 -5 -4 -4 -3 -3 -3 -2 -2 -1 -------- Run | Scr Mat Mat Mat Sto Fac Fac Fac Upp Upp War Pro Fac Res Qua Sec Res Tes Acc Total Allies . | . . . . . . . . . . . . . . . . . . . Largest Group . | . . . . . . . . . . . . . . . . . . . Highest-Rated Group . | . . . . . . . . . . . . . . . . . . . Highest-Rated Ally . | . . . . . . . . . . . . . . . . . . . Total Orders . | . . . . . . . . . . . . . . . . . . . Ally Attacks . | . . . . . . . . . . . . . . . . . . . Total Damage . | . . . . . . . . . . . . . . . . . . . Kills . | . . . . . . . . . . . . . . . . . . . Allies Corrupted . | . . . . . . . . . . . . . . . . . . . Allies Melted . | . . . . . . . . . . . . . . . . . . . Intel | -11 -10 -9 -8 -8 -7 -6 -5 -5 -5 -5 -4 -4 -3 -3 -3 -2 -2 -1 ------- Run | Scr Mat Mat Mat Sto Fac Fac Fac Upp Upp War Pro Fac Res Qua Sec Res Tes Acc Robot Analysis Total 5 | . . . . 2 . . . . . . . 1 1 1 . . . . Derelict Logs Recovered 5 | . . . . . . . . 2 1 . 2 . . . . . . . Drone Launches . | . . . . . . . . . . . . . . . . . . . Drone Recoveries . | . . . . . . . . . . . . . . . . . . . Decoded 0b10 Intel 51 | . . . . . . . . . . . . . 7 18 20 6 . . Traps 2 | . . . . . . . . . . . . . 1 . 1 . . . Emergency Access 2 | . . . . . . . . . . . . . . 1 1 . . . Items 29 | . . . . . . . . . . . . . 4 13 7 5 . . Machines 12 | . . . . . . . . . . . . . 1 4 6 1 . . Patrols 1 | . . . . . . . . . . . . . . . 1 . . . Guards 5 | . . . . . . . . . . . . . 1 . 4 . . . Exploration | -11 -10 -9 -8 -8 -7 -6 -5 -5 -5 -5 -4 -4 -3 -3 -3 -2 -2 -1 ------------- Run | Scr Mat Mat Mat Sto Fac Fac Fac Upp Upp War Pro Fac Res Qua Sec Res Tes Acc Turns Passed 7223 | 80 688 1114 178 208 554 422 264 306 73 363 267 192 338 691 812 402 92 179 Spaces Moved 14631 | 57 506 689 324 431 614 1202 597 1179 348 940 1207 523 587 1375 1863 1111 301 777 Core 5 | 5 . . . . . . . . . . . . . . . . . . Treads . | . . . . . . . . . . . . . . . . . . . Legs 1247 | 52 506 689 . . . . . . . . . . . . . . . . Wheels . | . . . . . . . . . . . . . . . . . . . Hover . | . . . . . . . . . . . . . . . . . . . Flight 13379 | . . . 324 431 614 1202 597 1179 348 940 1207 523 587 1375 1863 1111 301 777 Fastest Speed 6 | 50 120 120 29 28 25 26 23 20 21 21 21 17 6 22 14 17 14 10 Average Speed 30 | 113 120 120 29 29 26 26 25 20 21 21 21 22 23 26 20 17 16 15 Slowest Speed 120 | 120 120 120 29 110 110 27 28 21 21 21 21 26 31 29 104 20 17 17 Overloaded Moves 80 | . . . . . . . . . . . . . 35 34 11 . . . Propulsion Burnouts . | . . . . . . . . . . . . . . . . . . . Robots Hopped 106 | . . . 8 17 9 4 4 1 . . . 1 . 27 11 . 11 13 Cave-ins Triggered 1 | . . . . . . . . . . . . . . 1 . . . . Teleports 1 | . . . . . . . . . . . . . . . . . 1 . Exploration Rate (%) 49 | 4 85 59 29 75 17 34 16 93 49 95 95 17 19 87 86 24 43 20 Regions Visited 18 Branch Regions 8 Pre-discovered Areas 2 | . . . . . . . . 1 . . 1 . . . . . . . Known Exits Taken 18 | 1 1 1 1 1 1 1 1 1 1 1 1 1 1 1 1 1 1 . Unknown Exits Taken . | . . . . . . . . . . . . . . . . . . . Scrap Searched 6 | . . . . . . . . 3 1 . 2 . . . . . . . Spaces Dug 36 | . 3 . . . . . . . . . . . 12 6 6 2 1 6 Terrain Destroyed 89 | . 6 6 12 7 25 . . . . . . . 12 6 6 2 1 6 Melee 33 | . . . . . . . . . . . . . 12 6 6 2 1 6 Projectile 3 | . 3 . . . . . . . . . . . . . . . . . AOE 53 | . 3 6 12 7 25 . . . . . . . . . . . . . Terrain Rammed . | . . . . . . . . . . . . . . . . . . . Walls Destroyed . | . . . . . . . . . . . . . . . . . . . Machines Disabled . | . . . . . . . . . . . . . . . . . . . Actions | -11 -10 -9 -8 -8 -7 -6 -5 -5 -5 -5 -4 -4 -3 -3 -3 -2 -2 -1 --------- Run | Scr Mat Mat Mat Sto Fac Fac Fac Upp Upp War Pro Fac Res Qua Sec Res Tes Acc Total 16629 | 68 549 837 386 471 976 1267 679 1231 347 1104 1214 590 749 1584 2178 1282 315 802 Wait 1038 | . 1 7 38 21 325 4 17 30 . 157 . 33 67 102 149 65 14 8 Move 14410 | 56 505 688 307 396 595 1193 589 1176 347 939 1206 520 586 1327 1839 1110 281 750 Hop 94 | . . . 8 17 9 4 3 1 . . . 1 . 19 11 . 8 13 Pick Up 115 | 5 12 14 2 2 7 11 10 5 . 1 . 3 13 12 12 5 . 1 Fast Attach 182 | 7 2 10 2 2 7 7 12 2 . 1 1 9 11 20 42 38 . 9 Attach 70 | . 1 2 2 1 4 4 5 4 . . . 1 17 6 17 1 2 3 Detach 26 | . . . 2 1 . . 5 1 . 1 . 2 3 3 6 . 1 1 Swap 62 | . . 5 6 . 8 8 4 2 . 3 1 4 2 5 6 6 1 1 Drop 232 | . 9 20 6 5 11 16 16 3 . 2 1 12 20 20 42 41 . 8 Fire 172 | . 19 91 13 26 10 6 7 . . . . . . . . . . . Melee 200 | . . . . . . 14 11 7 . . 5 5 30 43 53 16 8 8 Ram . | . . . . . . . . . . . . . . . . . . . Kick . | . . . . . . . . . . . . . . . . . . . Crush . | . . . . . . . . . . . . . . . . . . . Escape Stasis 28 | . . . . . . . . . . . . . . 27 1 . . . Rewire . | . . . . . . . . . . . . . . . . . . . Trap . | . . . . . . . . . . . . . . . . . . . Miscellaneous . | . . . . . . . . . . . . . . . . . . . Route ------- -11/Scrapyard -10/Materials (discovered 4 exits: *Mat x3 / *Min) -9/Materials (discovered 2 exits: *Mat / *Min) -8/Materials -8/Storage (discovered 2 exits: *Fac / Rec) -7/Factory -6/Factory (discovered 4 exits: *Fac x2 / *Low x2) -5/Factory (discovered 2 exits: *Upp x2) -5/Upper Caves -5/Upper Caves -5/Warlord -4/Proximity Caves -4/Factory (discovered 6 exits: *Res / Upp x2 / Ext x2 / Arm) -3/Research (discovered 5 exits: Res x3 / *Qua x2) -3/Quarantine (discovered 2 exits: *Res / *Sec) -3/Section 7 -2/Research (discovered 2 exits: *Acc / *Tes) -2/Testing -1/Access To Fleet Rendezvous History --------- Turn | Location | Event 4 | -11/Scrapyard | Identified exit to Materials 4 | -11/Scrapyard | Discovered exit to Materials (range 15) 81 | -11/Scrapyard | Entered Materials 81 | -10/Materials | Evolved 1 slot: Propulsion x1 214 | -10/Materials | Identified exit to Mines 214 | -10/Materials | Discovered exit to Mines (range 9) 266 | -10/Materials | Identified exit to Materials 266 | -10/Materials | Discovered exit to Materials (range 15) 312 | -10/Materials | Build established: Hacker-Mutant 446 | -10/Materials | Discovered exit to Materials (range 13) 581 | -10/Materials | Discovered exit to Materials (range 5) 769 | -10/Materials | Entered another Materials area 769 | -9/Materials | Evolved 2 slots: Propulsion x1, Utility x1 1302 | -9/Materials | Identified exit to Mines 1302 | -9/Materials | Discovered exit to Mines (range 15) 1591 | -9/Materials | Identified exit to Materials 1591 | -9/Materials | Discovered exit to Materials (range 16) 1883 | -9/Materials | Entered another Materials area 1883 | -8/Materials | Evolved 2 slots: Propulsion x1, Utility x1 1902 | -8/Materials | Identified exit to Storage 2061 | -8/Materials | Entered Storage 2105 | -8/Storage | Identified exit to Factory 2157 | -8/Storage | Identified exit to Recycling 2269 | -8/Storage | Entered Factory 2269 | -7/Factory | Evolved 2 slots: Power x1, Utility x1 2362 | -7/Factory | Build established: Hacker-Sprinter 2367 | -7/Factory | Fabricated Imp. Gravmag System? 2806 | -7/Factory | Identified exit to Factory 2806 | -7/Factory | Discovered exit to Factory (range 13) 2823 | -7/Factory | Entered another Factory area 2823 | -6/Factory | Evolved 2 slots: Power x1, Utility x1 2916 | -6/Factory | Identified exit to Factory 2916 | -6/Factory | Discovered exit to Factory (range 9) 2975 | -6/Factory | Identified exit to Lower Caves 3027 | -6/Factory | Hacking Suite fried by hacking feedback 3083 | -6/Factory | Discovered exit to Factory (range 4) 3124 | -6/Factory | Found Prototype Processor 3124 | -6/Factory | Identified Exp. Targeting Computer 3173 | -6/Factory | Search patrols dispatched 3245 | -6/Factory | Entered another Factory area 3245 | -5/Factory | Evolved 2 slots: Propulsion x1, Utility x1 3347 | -5/Factory | Identified exit to Upper Caves 3509 | -5/Factory | Entered Upper Caves 3564 | -5/Upper Caves | Learned 4 Factory zone layouts 3575 | -5/Upper Caves | Attracted the attention of an 0b10 checkpoint 3579 | -5/Upper Caves | Spotted B-75 Beast 3592 | -5/Upper Caves | Identified exit to Upper Caves 3592 | -5/Upper Caves | Discovered exit to Upper Caves (range 9) 3664 | -5/Upper Caves | Lost 4 parts (1p1n1u1w) 3815 | -5/Upper Caves | Entered another Upper Caves area 3875 | -5/Upper Caves | Learned Factory interactive machine intel 3885 | -5/Upper Caves | Identified exit to Warlord 3885 | -5/Upper Caves | Discovered exit to Warlord (range 8) 3888 | -5/Upper Caves | Entered Warlord 3894 | -5/Warlord | Identified exit to Proximity Caves 3894 | -5/Warlord | Discovered exit to Proximity Caves (range 14) 3923 | -5/Warlord | System corruption cleaned by Quarantine Array 3956 | -5/Warlord | Met Warlord 3981 | -5/Warlord | Warlord's base attacked by MAIN.C 4037 | -5/Warlord | Found Prototype Piercing Weapon 4037 | -5/Warlord | Identified Vortex Lance 4044 | -5/Warlord | Found Vortex Lance 4065 | -5/Warlord | Build established: Generator-Sprinter 4234 | -5/Warlord | Warlord forces counterattacked 4251 | -5/Warlord | Entered Proximity Caves 4292 | -4/Proximity Caves | Learned Research terminal intel 4355 | -4/Proximity Caves | Spotted B-86 Titan 4515 | -4/Proximity Caves | Identified exit to Factory 4515 | -4/Proximity Caves | Discovered exit to Factory (range 6) 4516 | -4/Proximity Caves | Learned location of Quarantine (-3) 4518 | -4/Proximity Caves | Entered Factory 4518 | -4/Factory | Evolved 2 slots: Propulsion x1, Utility x1 4520 | -4/Factory | Loaded intel: 53 interactive machine locations 4566 | -4/Factory | Spotted B-86 Titan 4650 | -4/Factory | Found Prototype Processor 4650 | -4/Factory | Identified Exp. Signal Interpreter 4660 | -4/Factory | Identified exit to Upper Caves 4660 | -4/Factory | Identified exit to Extension 4660 | -4/Factory | Identified exit to Armory 4704 | -4/Factory | Identified exit to Research 4704 | -4/Factory | Discovered exit to Research (range 9) 4710 | -4/Factory | Entered Research 4710 | -3/Research | Evolved 2 slots: Propulsion x1, Utility x1 4711 | -3/Research | Loaded intel: 22 terminal locations 4723 | -3/Research | Found Enh. Force Lance 4785 | -3/Research | Spotted B-86 Titan 4825 | -3/Research | Destroyed B-86 Titan 4838 | -3/Research | Found Prototype Processor 4838 | -3/Research | Identified Exp. Melee Analysis Suite 4870 | -3/Research | Lost 7 parts (4n3u) 4992 | -3/Research | Identified exit to Research 4992 | -3/Research | Identified exit to Quarantine 5048 | -3/Research | Entered Quarantine 5150 | -3/Quarantine | Found Alien Impact Weapon 5150 | -3/Quarantine | Identified Core Stripper 5176 | -3/Quarantine | Met incapacitated Sigix Warrior 5176 | -3/Quarantine | Lockdown squad dispatched 5268 | -3/Quarantine | Crushed by falling debris 5410 | -3/Quarantine | Found Alien Artifact 5413 | -3/Quarantine | Identified Phase Redirector 5438 | -3/Quarantine | Found Alien Artifact 5444 | -3/Quarantine | Spotted Alpha 7 5526 | -3/Quarantine | Identified Subatomic Replicator 5544 | -3/Quarantine | Scanned by Researcher 5565 | -3/Quarantine | Found Alien Artifact 5570 | -3/Quarantine | Found Alien Artifact 5586 | -3/Quarantine | Lost 3 parts (1p2u) 5612 | -3/Quarantine | Found Alien Artifact 5612 | -3/Quarantine | Identified Terrabomb 5612 | -3/Quarantine | Used Terrabomb 5642 | -3/Quarantine | Found Alien Slashing Weapon 5642 | -3/Quarantine | Identified Sigix Broadsword 5648 | -3/Quarantine | System corruption reached 10% 5654 | -3/Quarantine | Found Alien Artifact 5654 | -3/Quarantine | Identified Core Reset Matrix 5654 | -3/Quarantine | Identified Transdimensional Reconstructor 5654 | -3/Quarantine | Identified Hpw. Transdimensional Reconstructor 5654 | -3/Quarantine | Used Core Reset Matrix 5656 | -3/Quarantine | Discovered exit to Research (range 10) 5658 | -3/Quarantine | Sensed 12 artifacts in vicinity 5718 | -3/Quarantine | Spotted Fortress 5738 | -3/Quarantine | Identified exit to Section 7 5738 | -3/Quarantine | Discovered exit to Section 7 (range 6) 5739 | -3/Quarantine | Entered Section 7 5740 | -3/Section 7 | Sensed 20 artifacts in vicinity 5757 | -3/Section 7 | Spotted S7 Guard 5762 | -3/Section 7 | Found Integrated Thermoelectric Network 5762 | -3/Section 7 | Installed Integrated Thermoelectric Network, gained heat-energy exchange potential 5897 | -3/Section 7 | Spotted B-86 Titan 5989 | -3/Section 7 | Search patrols dispatched 6035 | -3/Section 7 | Build established: Alien-Sprinter 6089 | -3/Section 7 | Spotted S7 Guard 6094 | -3/Section 7 | Found Core Regenerator 6103 | -3/Section 7 | Used Core Regenerator, restored core integrity (+325) 6131 | -3/Section 7 | Found Integrated Dissipator 6141 | -3/Section 7 | Installed Integrated Dissipator, increased core heat dissipation (+20) 6154 | -3/Section 7 | Found Integrated Reactor 6154 | -3/Section 7 | Installed Integrated Reactor, increased core energy generation (+10) 6171 | -3/Section 7 | Discovered exit to Research (range 13) 6232 | -3/Section 7 | Spotted Alpha 7 6233 | -3/Section 7 | Spotted Alpha 7 6239 | -3/Section 7 | Search patrols dispatched 6252 | -3/Section 7 | Spotted Executioner 6262 | -3/Section 7 | Spotted B-99 Colossus 6291 | -3/Section 7 | Found Integrated Reactor 6291 | -3/Section 7 | Installed Integrated Reactor, increased core energy generation (+10) 6292 | -3/Section 7 | Found Integrated Reactor 6292 | -3/Section 7 | Installed Integrated Reactor, increased core energy generation (+10) 6303 | -3/Section 7 | Found LRC Boosters 6303 | -3/Section 7 | Installed LRC Boosters, increased mass support (+10) 6306 | -3/Section 7 | Found LRC Matter Compressor 6306 | -3/Section 7 | Installed LRC Matter Compressor, increased matter storage capacity (+125) 6380 | -3/Section 7 | Spotted Executioner 6381 | -3/Section 7 | Spotted Executioner 6383 | -3/Section 7 | Spotted Striker 6383 | -3/Section 7 | Spotted Striker 6443 | -3/Section 7 | Found Sigix Sheargun 6448 | -3/Section 7 | Spotted Striker 6448 | -3/Section 7 | Spotted Striker 6479 | -3/Section 7 | Found Terrabomb 6489 | -3/Section 7 | Search patrols dispatched 6551 | -3/Section 7 | Entered Research 6551 | -2/Research | Warlord forces began assault on 0b10 6551 | -2/Research | Evolved 2 slots: Propulsion x1, Utility x1 6661 | -2/Research | Research machine network offline 6709 | -2/Research | Met up with Warlord 6765 | -2/Research | Found Prototype Device 6765 | -2/Research | Identified Adv. Particle Accelerator 6823 | -2/Research | Identified exit to Access 6823 | -2/Research | Discovered exit to Access (range 8) 6850 | -2/Research | Spotted B-90 Cyclops 6860 | -2/Research | Identified exit to Testing 6860 | -2/Research | Discovered exit to Testing (range 12) 6953 | -2/Research | Entered Testing 6962 | -2/Testing | P-80 Master assimilated allied 9G-GQO(l) 6969 | -2/Testing | Spotted 3S-T0J(L) 6999 | -2/Testing | Spotted Striker 7008 | -2/Testing | Spotted Striker 7015 | -2/Testing | Warped through subspace 7025 | -2/Testing | Protovariant out of control (PH-O7IYX8P6R5) 7025 | -2/Testing | Unleashed a protovariant (PH-O7IYX8P6R5) 7026 | -2/Testing | Spotted PX-5HAVX080U4 7030 | -2/Testing | Protovariant out of control (PX-5HAVX080U4) 7030 | -2/Testing | Unleashed a protovariant (PX-5HAVX080U4) 7037 | -2/Testing | Spotted Investigator 7039 | -2/Testing | Discovered exit to Access (range 15) 7045 | -2/Testing | Entered Access 7045 | -1/Access | Evolved 2 slots: Power x1, Propulsion x1 7078 | -1/Access | Found Prototype Device 7078 | -1/Access | Identified Exp. Thermal Defense Suite 7119 | -1/Access | Identified exit to Surface 7185 | -1/Access | Spotted B-99 Colossus 7217 | -1/Access | Used Terrabomb 7217 | -1/Access | Spotted B-99 Colossus 7224 | *** | Heading to fleet! Last Messages --------------- 07189_ A-15 Conveyor destroyed. 07189_ Slug penetrates K-01 Serf. 07189_ Penetrated by Slug. 07189_ Acquired 83 matter. 07201_ Connecting with Terminal... >>Traps(Locate) Found 1 trap in 1 array: 1x Blade Trap Map updated. >>Layout(Zone) Retrieving Zone 3R layout... Downloaded map data. 07201_ ALERT: Suspicious activity at Terminal A005. Dispatching Investigation squad. 07217_ Dropped Adv. Transmission Jammer. 07217_ Terrabomb activated. 07217_ Door malfunctions. 07218_ U-05 Engineer builds a Wall. 07221_ Main Access Shell breached. [Achievement: Home At Last?] Map ----- +----------------------------------------------------+ | #???????###### !"" # ??? | | ################ """+"""""#"""""##+#+## ??? | | #???# # ??? | | #???# ####### + ??? | | ##### #?????# """""""""""""""""""### ??? | | #?????"" "" " ?# ??? | | ##### #########"" "" " ?# ??? | | ????# #??# " "" " ######??? | | ????# #??# " "" " "######??? | | ????# #??# " "" " " ??? | | #####+#### " "" " " ??? | | # " """"""""/""""""""""""" ???????? | | = # + ""???????? | | " # " " "??????? | | " # """""""""""!"""""""""" " ??????? | | """ # !" " + ???????? | | """ # " " " ??????? | | " # " " " ??????? | | " ###""""" " """??????? | | #?? """ " " ??????? | | ! #??"""""""""""""""""""""""""" " ??????? | | #?? """" " " ??????? | | #???? ????" "? " ???????? | | ######+###??????????" """""" "? "????????? | | ????????????????????" " " "?? "????????? | | ????????????????????"?" "@ " "?? ?????????? | | ??????????????????????" "" "??? ?????????? | | ??????????????????????" " "????? ??????????? | | ??????????????????????"""""" "??????????????????? | | ??????????????????????????? "??????????????????? | | ?????????????????????????? "??????????????????? | | ?????????????????????????""""""??????????????????? | | ????????????????????????? ""??????????????????? | | ???????????????????????? ??????????????????? | | ???????????????????????#### ###????????w?????????? | | ??????????????????????????##?????????????????????? | | ?????????????????????????????????????????????????? | | ?????????????????????????????????????????????????? | | ?????????????????????????????????????????????????? | | ?????????????????????????????????????????????????? | | ?????????????????????????????????????????????????? | | ?????????????????????????????????????????????????? | | ?????????????????????????????????????????????????? | | ?????????????????????????????????????????????????? | | ?????????????????????????????????????????????????? | | ?????????????????????????????????????????????????? | | ?????????????????????????????????????????????????? | | ?????????????????????????????????????????????????? | | ?????????????????????????????????????????????????? | | ?????????????????????????????????????????????????? | +----------------------------------------------------+ Best States ------------- Heat Dissipation 105 Coolant Potential 120 Energy Generation 89 Energy Capacity 765 Matter Stores 425 Matter Capacity 425 Sight Range 22 Robot Scan Range 18 Terrain Scan Density 10 ECM Strength 1 Jamming Range 16 Cloak Strength 2 Power Amplification 30 Additional Mass Support 9 Resistance: KI 35 Resistance: TH 65 Resistance: EX 35 Resistance: EM 35 Resistance: I 35 Resistance: S 35 Resistance: P 35 Propulsion Shielding 66 Evasion (%) 79 Particle Charging 30 Offensive Hacking 30 Item Schematics ----------------- Exp. Myomer Leg | -3/Section 7 | Archive Adv. Matter Compressor | -3/Section 7 | Archive Kinetic Spear | -3/Section 7 | Archive Helical Railgun | -3/Section 7 | Archive Shock Maul | -2/Testing | Archive Exp. Power Amplifier | -2/Testing | Archive Exp. Flexi-carbon Leg | -2/Testing | Archive Robot Schematics ------------------ Y-72 Warden | -2/Testing | Archive Fabricated ------------ Imp. Gravmag System | x2 | -7/Factory | Preloaded Alien Tech Used ----------------- Core Stripper Phase Redirector Subatomic Replicator Terrabomb Sigix Broadsword Core Reset Matrix Integrated Thermoelectric Network Core Regenerator Integrated Dissipator Integrated Reactor LRC Boosters LRC Matter Compressor Sigix Sheargun Transdimensional Reconstructor Achievements -------------- Charge!!! Home At Last? Part-time Excavator Rampage Challenges ------------ None Game ------ Seed NeutronTitaniumMegatreads Manual? 0 Play Time 04:25:02 Cumulative 85.4 hours Start 2022.04.14 @ 13:28:46 End 2022.04.14 @ 22:26:44 Sessions 1 Manual Loads 0 Difficulty Explorer Special Mode None Game No. 21 Rogue 0 Adventurer 1 Explorer 20 Win Type 2 Total 5 Types 3/0/1/1/0/0/0/0/0 Lore% 56 Gallery% 66 Achievement% 55 Wizard Run 0 Options --------- ASCII 0 Keyboard 0 Movement Numpad Keybinds 0 Fullscreen 0 Font 14/X11 Map View 76x50 Tactical HUD 1 Map Filters NONE Filters NONE Steam 1 RUN: f21b70b9-fc51-44cd-bad1-2f875681bb6d